[Event "January 2 Early 2024"]
[Site "https://www.chess.com"]
[Date "2024.01.02"]
[Round "7"]
[White "Lopusiewicz, Piotr"]
[Black "Tasev, Dejan"]
[Result "0-1"]
[Board "86"]
[TimeControl "180+1"]
[WhiteFideId "1116029"]
[BlackFideId "936618"]
[WhiteElo "2495"]
[BlackElo "2705"]
[WhiteTeam "POL"]
[BlackTeam "SRB"]
[WhiteClock "0:00:22"]
[BlackClock "0:00:25"]

1. d4 {[%clk 0:03:00]}  Nf6 {[%clk 0:02:58]} 2. c4 {[%clk 0:03:00]}  g6 {[%clk 0:02:58]} 3. Nc3 {[%clk 0:03:00]}  Bg7 {[%clk 0:02:58]} 4. e4 {[%clk 0:02:59]}  d6 {[%clk 0:02:58]} 5. Nf3 {[%clk 0:03:00]}  O-O {[%clk 0:02:56]} 6. Be2 {[%clk 0:03:00]}  e5 {[%clk 0:02:55]} 7. O-O {[%clk 0:03:00]}  Nc6 {[%clk 0:02:55]} 8. d5 {[%clk 0:03:01]}  Ne7 {[%clk 0:02:55]} 9. b4 {[%clk 0:03:01]}  Ne8 {[%clk 0:02:56]} 10. c5 {[%clk 0:03:01]}  h6 {[%clk 0:02:55]} 11. a4 {[%clk 0:03:01]}  f5 {[%clk 0:02:55]} 12. Ba3 {[%clk 0:02:55]}  f4 {[%clk 0:02:52]} 13. b5 {[%clk 0:02:52]}  b6 {[%clk 0:02:50]} 14. cxd6 {[%clk 0:02:43]}  cxd6 {[%clk 0:02:50]} 15. Na2 {[%clk 0:02:37]}  g5 {[%clk 0:02:43]} 16. Nd2 {[%clk 0:02:37]}  Ng6 {[%clk 0:02:28]} 17. Nb4 {[%clk 0:02:36]}  Rf7 {[%clk 0:02:17]} 18. Nc6 {[%clk 0:02:36]}  Qf6 {[%clk 0:02:17]} 19. Bb4 {[%clk 0:02:28]}  Bf8 {[%clk 0:02:16]} 20. a5 {[%clk 0:02:27]}  bxa5 {[%clk 0:02:14]} 21. Rxa5 {[%clk 0:02:26]}  Rg7 {[%clk 0:01:59]} 22. b6 {[%clk 0:02:25]}  Nh4 {[%clk 0:01:47]} 23. Rxa7 {[%clk 0:02:20]}  Raxa7 {[%clk 0:01:44]} 24. bxa7 {[%clk 0:02:17]}  Bb7 {[%clk 0:01:43]} 25. Qa4 {[%clk 0:02:11]}  g4 {[%clk 0:01:33]} 26. g3 {[%clk 0:01:53]}  Ba8 {[%clk 0:01:21]} 27. Ba5 {[%clk 0:01:30]}  Nc7 {[%clk 0:00:56]} 28. Bxc7 {[%clk 0:01:27]}  Rxc7 {[%clk 0:00:56]} 29. Rb1 {[%clk 0:01:21]}  Nf3+ {[%clk 0:00:50]} 30. Nxf3 {[%clk 0:01:15]}  gxf3 {[%clk 0:00:50]} 31. Bf1 {[%clk 0:01:11]}  fxg3 {[%clk 0:00:50]} 32. hxg3 {[%clk 0:01:10]}  Qg7 {[%clk 0:00:45]} 33. Ra1 {[%clk 0:00:44]}  h5 {[%clk 0:00:41]} 34. Qa3 {[%clk 0:00:42]}  Qg4 {[%clk 0:00:30]} 35. Kh2 {[%clk 0:00:33]}  h4 {[%clk 0:00:30]} 36. Bh3 {[%clk 0:00:33]}  hxg3+ {[%clk 0:00:31]} 37. fxg3 {[%clk 0:00:34]}  Rh7 {[%clk 0:00:31]} 38. Kg1 {[%clk 0:00:27]}  Qxg3+ {[%clk 0:00:27]} 39. Kf1 {[%clk 0:00:27]}  Qxh3+ {[%clk 0:00:27]} 40. Ke1 {[%clk 0:00:22]}  Qg2 {[%clk 0:00:25]} 0-1

[Event "January 2 Early 2024"]
[Site "https://www.chess.com"]
[Date "2024.01.02"]
[Round "7"]
[White "Koshulyan, Egor A."]
[Black "Hasanagic, Anel"]
[Result "1-0"]
[Board "88"]
[TimeControl "180+1"]
[WhiteFideId "24237000"]
[BlackFideId "14605791"]
[WhiteElo "2660"]
[BlackElo "2495"]
[WhiteTeam "RUS"]
[BlackTeam "SLO"]
[WhiteClock "0:01:51"]
[BlackClock "0:00:20"]

1. f4 {[%clk 0:03:00]}  f5 {[%clk 0:02:58]} 2. Nf3 {[%clk 0:03:00]}  Nf6 {[%clk 0:02:59]} 3. g3 {[%clk 0:03:01]}  g6 {[%clk 0:02:59]} 4. Bg2 {[%clk 0:03:01]}  Bg7 {[%clk 0:03:00]} 5. O-O {[%clk 0:03:01]}  O-O {[%clk 0:03:01]} 6. d3 {[%clk 0:03:01]}  d6 {[%clk 0:03:02]} 7. Nc3 {[%clk 0:03:01]}  Nc6 {[%clk 0:03:02]} 8. e4 {[%clk 0:03:01]}  fxe4 {[%clk 0:03:02]} 9. dxe4 {[%clk 0:03:01]}  e5 {[%clk 0:03:03]} 10. fxe5 {[%clk 0:02:57]}  Nxe5 {[%clk 0:03:02]} 11. Nxe5 {[%clk 0:02:57]}  dxe5 {[%clk 0:03:03]} 12. Bg5 {[%clk 0:02:57]}  Qxd1 {[%clk 0:02:58]} 13. Raxd1 {[%clk 0:02:58]}  c6 {[%clk 0:02:57]} 14. h3 {[%clk 0:02:48]}  Be6 {[%clk 0:02:52]} 15. Rd6 {[%clk 0:02:46]}  Rae8 {[%clk 0:02:51]} 16. Na4 {[%clk 0:02:37]}  Nd7 {[%clk 0:02:40]} 17. Rfd1 {[%clk 0:02:34]}  Rf7 {[%clk 0:01:57]} 18. Bf1 {[%clk 0:02:31]}  Nf8 {[%clk 0:01:26]} 19. Nc5 {[%clk 0:02:28]}  Bc8 {[%clk 0:00:33]} 20. Rd8 {[%clk 0:02:26]}  Rxd8 {[%clk 0:00:34]} 21. Rxd8 {[%clk 0:02:25]}  Rc7 {[%clk 0:00:35]} 22. Bc4+ {[%clk 0:02:22]}  Kh8 {[%clk 0:00:35]} 23. Re8 {[%clk 0:01:57]}  h6 {[%clk 0:00:34]} 24. Bd8 {[%clk 0:01:56]}  Rd7 {[%clk 0:00:26]} 25. Nxd7 {[%clk 0:01:54]}  Bxd7 {[%clk 0:00:27]} 26. Re7 {[%clk 0:01:54]}  Bf6 {[%clk 0:00:23]} 27. Rf7 {[%clk 0:01:53]}  Bg7 {[%clk 0:00:23]} 28. Bf6 {[%clk 0:01:52]}  Bxf6 {[%clk 0:00:23]} 29. Rxf8+ {[%clk 0:01:51]}  Kg7 {[%clk 0:00:20]} 30. Rf7+ {[%clk 0:01:51]} 1-0

[Event "January 2 Early 2024"]
[Site "https://www.chess.com"]
[Date "2024.01.02"]
[Round "7"]
[White "Gryshko, Vitalii"]
[Black "Spata, German"]
[Result "1-0"]
[Board "89"]
[TimeControl "180+1"]
[WhiteFideId "14174286"]
[BlackFideId "113026"]
[WhiteElo "2487"]
[BlackElo "2652"]
[WhiteTeam "UKR"]
[BlackTeam "ARG"]
[WhiteClock "0:00:32"]
[BlackClock "0:00:00"]

1. c4 {[%clk 0:03:00]}  g6 {[%clk 0:02:44]} 2. h4 {[%clk 0:02:59]}  h5 {[%clk 0:02:43]} 3. Nc3 {[%clk 0:02:56]}  Bg7 {[%clk 0:02:41]} 4. d4 {[%clk 0:02:56]}  d6 {[%clk 0:02:40]} 5. Nf3 {[%clk 0:02:57]}  c6 {[%clk 0:02:27]} 6. e4 {[%clk 0:02:55]}  Bg4 {[%clk 0:02:24]} 7. Be3 {[%clk 0:02:54]}  Nd7 {[%clk 0:02:08]} 8. Qd2 {[%clk 0:02:50]}  Bxf3 {[%clk 0:01:58]} 9. gxf3 {[%clk 0:02:51]}  Qa5 {[%clk 0:01:53]} 10. f4 {[%clk 0:02:44]}  Ngf6 {[%clk 0:01:50]} 11. e5 {[%clk 0:02:39]}  Ng4 {[%clk 0:01:47]} 12. f3 {[%clk 0:02:29]}  Nxe3 {[%clk 0:01:46]} 13. Qxe3 {[%clk 0:02:30]}  O-O-O {[%clk 0:01:34]} 14. O-O-O {[%clk 0:02:26]}  Bh6 {[%clk 0:01:17]} 15. Kb1 {[%clk 0:02:05]}  dxe5 {[%clk 0:01:16]} 16. dxe5 {[%clk 0:02:04]}  Nc5 {[%clk 0:01:16]} 17. Bh3+ {[%clk 0:02:04]}  Kb8 {[%clk 0:01:13]} 18. e6 {[%clk 0:01:59]}  fxe6 {[%clk 0:00:57]} 19. Qe5+ {[%clk 0:01:57]}  Ka8 {[%clk 0:00:42]} 20. Ne4 {[%clk 0:01:56]}  b6 {[%clk 0:00:35]} 21. Qc7 {[%clk 0:01:23]}  Rc8 {[%clk 0:00:34]} 22. Qxe7 {[%clk 0:01:17]}  Nxe4 {[%clk 0:00:34]} 23. fxe4 {[%clk 0:01:15]}  Bxf4 {[%clk 0:00:30]} 24. Bxe6 {[%clk 0:01:15]}  Rc7 {[%clk 0:00:27]} 25. Rd8+ {[%clk 0:01:10]}  Rxd8 {[%clk 0:00:26]} 26. Qxd8+ {[%clk 0:01:11]}  Kb7 {[%clk 0:00:27]} 27. Rd1 {[%clk 0:01:06]}  Be5 {[%clk 0:00:26]} 28. Rd7 {[%clk 0:01:04]}  Qe1+ {[%clk 0:00:25]} 29. Kc2 {[%clk 0:00:52]}  Qe2+ {[%clk 0:00:22]} 30. Rd2 {[%clk 0:00:49]}  Qxe4+ {[%clk 0:00:22]} 31. Kb3 {[%clk 0:00:50]}  Bxb2 {[%clk 0:00:18]} 32. Bc8+ {[%clk 0:00:48]}  Rxc8 {[%clk 0:00:15]} 33. Rd7+ {[%clk 0:00:47]}  Kb8 {[%clk 0:00:15]} 34. Qg5 {[%clk 0:00:36]}  Be5 {[%clk 0:00:13]} 35. Qe7 {[%clk 0:00:32]}  Bc7 {[%clk 0:00:00]} 36. Qxe4 {[%clk 0:00:32]} 1-0

[Event "January 2 Early 2024"]
[Site "https://www.chess.com"]
[Date "2024.01.02"]
[Round "7"]
[White "Postnikov, Daniil"]
[Black "Jakubowski, Krzysztof"]
[Result "1-0"]
[Board "90"]
[TimeControl "180+1"]
[WhiteFideId "4166329"]
[BlackFideId "1112848"]
[WhiteElo "2486"]
[BlackElo "2646"]
[WhiteTeam "RUS"]
[BlackTeam "POL"]
[WhiteClock "0:00:58"]
[BlackClock "0:00:00"]

1. e4 {[%clk 0:03:00]}  c5 {[%clk 0:02:59]} 2. Nf3 {[%clk 0:03:00]}  d6 {[%clk 0:02:59]} 3. d4 {[%clk 0:02:59]}  cxd4 {[%clk 0:02:58]} 4. Qxd4 {[%clk 0:03:00]}  Nf6 {[%clk 0:02:57]} 5. Nc3 {[%clk 0:02:55]}  Bd7 {[%clk 0:02:49]} 6. Bg5 {[%clk 0:02:51]}  Nc6 {[%clk 0:02:48]} 7. Qd2 {[%clk 0:02:52]}  e6 {[%clk 0:02:46]} 8. O-O-O {[%clk 0:02:51]}  a6 {[%clk 0:02:44]} 9. Kb1 {[%clk 0:02:49]}  Be7 {[%clk 0:02:39]} 10. h3 {[%clk 0:02:38]}  O-O {[%clk 0:02:36]} 11. e5 {[%clk 0:02:35]}  Ne8 {[%clk 0:02:23]} 12. exd6 {[%clk 0:02:25]}  Bxg5 {[%clk 0:02:20]} 13. Nxg5 {[%clk 0:02:26]}  Rc8 {[%clk 0:02:11]} 14. Bd3 {[%clk 0:02:22]}  g6 {[%clk 0:02:01]} 15. h4 {[%clk 0:02:22]}  h6 {[%clk 0:01:42]} 16. Nge4 {[%clk 0:02:19]}  Kg7 {[%clk 0:01:41]} 17. f4 {[%clk 0:02:11]}  Nb4 {[%clk 0:01:28]} 18. h5 {[%clk 0:02:06]}  f5 {[%clk 0:01:25]} 19. Nf2 {[%clk 0:01:53]}  g5 {[%clk 0:01:22]} 20. g4 {[%clk 0:01:44]}  Nxd6 {[%clk 0:00:58]} 21. Rdg1 {[%clk 0:01:37]}  Bc6 {[%clk 0:00:51]} 22. Rh3 {[%clk 0:01:34]}  fxg4 {[%clk 0:00:30]} 23. Nxg4 {[%clk 0:01:30]}  Rxf4 {[%clk 0:00:28]} 24. Ne2 {[%clk 0:01:14]}  Nxd3 {[%clk 0:00:23]} 25. Rxd3 {[%clk 0:01:12]}  Nc4 {[%clk 0:00:00]} 26. Qc3+ {[%clk 0:00:58]} 1-0

[Event "January 2 Early 2024"]
[Site "https://www.chess.com"]
[Date "2024.01.02"]
[Round "7"]
[White "Hajiyev, Kanan"]
[Black "Gutierrez Olivares, Daniel"]
[Result "0-1"]
[Board "93"]
[TimeControl "180+1"]
[WhiteFideId "13404148"]
[BlackFideId "2264005"]
[WhiteElo "2622"]
[BlackElo "2479"]
[WhiteTeam "AZE"]
[BlackTeam "ESP"]
[WhiteClock "0:00:00"]
[BlackClock "0:01:06"]

1. d4 {[%clk 0:03:00]}  e6 {[%clk 0:03:00]} 2. Nf3 {[%clk 0:03:01]}  Nf6 {[%clk 0:03:00]} 3. c4 {[%clk 0:03:02]}  c5 {[%clk 0:03:00]} 4. e3 {[%clk 0:03:00]}  b6 {[%clk 0:02:59]} 5. Be2 {[%clk 0:03:00]}  Bb7 {[%clk 0:02:59]} 6. O-O {[%clk 0:03:01]}  cxd4 {[%clk 0:02:59]} 7. Nxd4 {[%clk 0:03:01]}  Nc6 {[%clk 0:02:58]} 8. b3 {[%clk 0:03:01]}  Be7 {[%clk 0:02:57]} 9. Bb2 {[%clk 0:03:02]}  O-O {[%clk 0:02:57]} 10. Bf3 {[%clk 0:03:02]}  a6 {[%clk 0:02:55]} 11. Nc3 {[%clk 0:03:02]}  Qc7 {[%clk 0:02:54]} 12. Rc1 {[%clk 0:03:01]}  Ne5 {[%clk 0:02:55]} 13. Be2 {[%clk 0:03:00]}  Rac8 {[%clk 0:02:53]} 14. f4 {[%clk 0:02:54]}  Ng6 {[%clk 0:02:51]} 15. Bf3 {[%clk 0:02:43]}  Rfd8 {[%clk 0:02:44]} 16. Bxb7 {[%clk 0:02:42]}  Qxb7 {[%clk 0:02:44]} 17. Qf3 {[%clk 0:02:42]}  Qb8 {[%clk 0:02:40]} 18. e4 {[%clk 0:02:38]}  Bc5 {[%clk 0:02:34]} 19. Rcd1 {[%clk 0:02:34]}  Nxf4 {[%clk 0:02:20]} 20. e5 {[%clk 0:02:00]}  Qxe5 {[%clk 0:02:08]} 21. Qxf4 {[%clk 0:01:57]}  Qxf4 {[%clk 0:02:07]} 22. Rxf4 {[%clk 0:01:58]}  e5 {[%clk 0:02:07]} 23. Rxf6 {[%clk 0:01:12]}  gxf6 {[%clk 0:02:01]} 24. Nd5 {[%clk 0:01:12]}  exd4 {[%clk 0:01:57]} 25. b4 {[%clk 0:01:01]}  Bd6 {[%clk 0:01:51]} 26. Nxb6 {[%clk 0:00:57]}  Rb8 {[%clk 0:01:41]} 27. c5 {[%clk 0:00:58]}  Bc7 {[%clk 0:01:40]} 28. Nd5 {[%clk 0:00:57]}  Be5 {[%clk 0:01:38]} 29. a4 {[%clk 0:00:51]}  Kf8 {[%clk 0:01:34]} 30. Bxd4 {[%clk 0:00:43]}  Rdc8 {[%clk 0:01:31]} 31. Nb6 {[%clk 0:00:37]}  Rb7 {[%clk 0:01:25]} 32. Bf2 {[%clk 0:00:33]}  Rcc7 {[%clk 0:01:20]} 33. h3 {[%clk 0:00:24]}  h5 {[%clk 0:01:19]} 34. Nd5 {[%clk 0:00:24]}  Rc6 {[%clk 0:01:18]} 35. a5 {[%clk 0:00:21]}  d6 {[%clk 0:01:16]} 36. Nb6 {[%clk 0:00:20]}  dxc5 {[%clk 0:01:15]} 37. Bxc5+ {[%clk 0:00:12]}  Kg7 {[%clk 0:01:15]} 38. Rd8 {[%clk 0:00:12]}  Bc7 {[%clk 0:01:11]} 39. Rd7 {[%clk 0:00:10]}  Rcxb6 {[%clk 0:01:07]} 40. axb6 {[%clk 0:00:09]}  Bh2+ {[%clk 0:01:07]} 41. Kxh2 {[%clk 0:00:08]}  Rxd7 {[%clk 0:01:07]} 42. Kg3 {[%clk 0:00:07]}  f5 {[%clk 0:01:07]} 43. Kf4 {[%clk 0:00:07]}  Kf6 {[%clk 0:01:08]} 44. Ke3 {[%clk 0:00:04]}  Ke6 {[%clk 0:01:08]} 45. g3 {[%clk 0:00:05]}  Kd5 {[%clk 0:01:06]} 46. Kd3 {[%clk 0:00:00]}  a5 {[%clk 0:01:06]} 0-1

[Event "January 2 Early 2024"]
[Site "https://www.chess.com"]
[Date "2024.01.02"]
[Round "7"]
[White "Azali, Tannaz"]
[Black "Mammadova, Narmin"]
[Result "1-0"]
[Board "94"]
[TimeControl "180+1"]
[WhiteFideId "12537721"]
[BlackFideId "13403710"]
[WhiteElo "2478"]
[BlackElo "2621"]
[WhiteTeam "IRI"]
[BlackTeam "AZE"]
[WhiteClock "0:00:13"]
[BlackClock "0:00:00"]

1. e4 {[%clk 0:02:59]}  c6 {[%clk 0:02:59]} 2. d4 {[%clk 0:02:59]}  d5 {[%clk 0:03:00]} 3. e5 {[%clk 0:03:00]}  Bf5 {[%clk 0:03:00]} 4. Nf3 {[%clk 0:03:00]}  e6 {[%clk 0:03:00]} 5. Be2 {[%clk 0:03:00]}  Nd7 {[%clk 0:02:57]} 6. O-O {[%clk 0:03:00]}  h6 {[%clk 0:02:55]} 7. c3 {[%clk 0:03:00]}  Ne7 {[%clk 0:02:53]} 8. Na3 {[%clk 0:03:00]}  Bg6 {[%clk 0:02:50]} 9. Nc2 {[%clk 0:03:00]}  Nf5 {[%clk 0:02:50]} 10. g3 {[%clk 0:02:49]}  Be7 {[%clk 0:02:46]} 11. Re1 {[%clk 0:02:49]}  O-O {[%clk 0:02:46]} 12. Bf1 {[%clk 0:02:49]}  a6 {[%clk 0:02:42]} 13. Bg2 {[%clk 0:02:50]}  c5 {[%clk 0:02:41]} 14. Ne3 {[%clk 0:02:45]}  Rc8 {[%clk 0:02:36]} 15. Nxf5 {[%clk 0:02:40]}  Bxf5 {[%clk 0:02:37]} 16. dxc5 {[%clk 0:02:39]}  Nxc5 {[%clk 0:02:34]} 17. Nd4 {[%clk 0:02:39]}  Bg6 {[%clk 0:02:31]} 18. h4 {[%clk 0:02:39]}  b5 {[%clk 0:02:22]} 19. Bf4 {[%clk 0:02:32]}  Nd3 {[%clk 0:02:17]} 20. Re3 {[%clk 0:02:20]}  Nxf4 {[%clk 0:02:16]} 21. gxf4 {[%clk 0:02:21]}  Bxh4 {[%clk 0:02:16]} 22. f5 {[%clk 0:02:21]}  exf5 {[%clk 0:02:08]} 23. e6 {[%clk 0:02:20]}  Re8 {[%clk 0:02:01]} 24. Qf3 {[%clk 0:02:14]}  Bg5 {[%clk 0:01:54]} 25. Re2 {[%clk 0:02:14]}  fxe6 {[%clk 0:01:45]} 26. Nxe6 {[%clk 0:02:14]}  Qf6 {[%clk 0:01:42]} 27. Rae1 {[%clk 0:02:14]}  Kh7 {[%clk 0:01:33]} 28. Qxd5 {[%clk 0:02:11]}  Bh4 {[%clk 0:00:59]} 29. Qd7 {[%clk 0:01:34]}  Rc4 {[%clk 0:00:49]} 30. Nd4 {[%clk 0:01:04]}  Rxe2 {[%clk 0:00:45]} 31. Rxe2 {[%clk 0:01:05]}  Bh5 {[%clk 0:00:32]} 32. Rd2 {[%clk 0:00:48]}  Bg5 {[%clk 0:00:27]} 33. Rd3 {[%clk 0:00:41]}  Bg6 {[%clk 0:00:25]} 34. Bd5 {[%clk 0:00:38]}  h5 {[%clk 0:00:20]} 35. Bxc4 {[%clk 0:00:32]}  bxc4 {[%clk 0:00:21]} 36. Rg3 {[%clk 0:00:33]}  Bh4 {[%clk 0:00:17]} 37. Rg2 {[%clk 0:00:33]}  f4 {[%clk 0:00:12]} 38. f3 {[%clk 0:00:33]}  Bg3 {[%clk 0:00:11]} 39. Qe6 {[%clk 0:00:26]}  Qg5 {[%clk 0:00:11]} 40. Qxc4 {[%clk 0:00:18]}  h4 {[%clk 0:00:11]} 41. Qe6 {[%clk 0:00:18]}  Qa5 {[%clk 0:00:06]} 42. Ne2 {[%clk 0:00:13]}  Qxa2 {[%clk 0:00:00]} 43. Qxa2 {[%clk 0:00:13]} 1-0

[Event "January 2 Early 2024"]
[Site "https://www.chess.com"]
[Date "2024.01.02"]
[Round "7"]
[White "Andrews, Todd"]
[Black "Brankovic, Dejan"]
[Result "0-1"]
[Board "95"]
[TimeControl "180+1"]
[WhiteFideId "2012456"]
[BlackFideId "921602"]
[WhiteElo "2616"]
[BlackElo "2466"]
[WhiteTeam "USA"]
[BlackTeam "SRB"]
[WhiteClock "0:00:10"]
[BlackClock "0:00:20"]

1. d4 {[%clk 0:03:00]}  Nf6 {[%clk 0:02:59]} 2. c4 {[%clk 0:03:00]}  g6 {[%clk 0:02:58]} 3. Nc3 {[%clk 0:03:00]}  Bg7 {[%clk 0:02:59]} 4. e4 {[%clk 0:03:01]}  d6 {[%clk 0:03:00]} 5. Nf3 {[%clk 0:03:01]}  O-O {[%clk 0:03:00]} 6. Be2 {[%clk 0:03:02]}  e5 {[%clk 0:03:00]} 7. O-O {[%clk 0:03:03]}  Na6 {[%clk 0:02:57]} 8. Re1 {[%clk 0:03:02]}  c6 {[%clk 0:02:56]} 9. Rb1 {[%clk 0:03:01]}  exd4 {[%clk 0:02:49]} 10. Nxd4 {[%clk 0:03:01]}  Nc5 {[%clk 0:02:50]} 11. f3 {[%clk 0:02:58]}  a5 {[%clk 0:02:50]} 12. Kh1 {[%clk 0:02:50]}  Re8 {[%clk 0:02:48]} 13. Bg5 {[%clk 0:02:45]}  Qb6 {[%clk 0:02:44]} 14. Nc2 {[%clk 0:02:37]}  Qc7 {[%clk 0:02:35]} 15. Bf4 {[%clk 0:02:34]}  Bf8 {[%clk 0:02:35]} 16. Bf1 {[%clk 0:02:27]}  Nfd7 {[%clk 0:02:30]} 17. Qd2 {[%clk 0:02:23]}  Ne5 {[%clk 0:02:30]} 18. Rbd1 {[%clk 0:02:17]}  Be6 {[%clk 0:02:26]} 19. b3 {[%clk 0:02:17]}  Rad8 {[%clk 0:02:25]} 20. Nd4 {[%clk 0:02:12]}  Bc8 {[%clk 0:02:24]} 21. Qf2 {[%clk 0:02:09]}  Bg7 {[%clk 0:02:22]} 22. Qg3 {[%clk 0:02:06]}  h6 {[%clk 0:02:19]} 23. Rd2 {[%clk 0:01:56]}  Qe7 {[%clk 0:02:15]} 24. Red1 {[%clk 0:01:54]}  h5 {[%clk 0:02:07]} 25. h3 {[%clk 0:01:44]}  h4 {[%clk 0:02:07]} 26. Qf2 {[%clk 0:01:43]}  Bf6 {[%clk 0:02:03]} 27. a3 {[%clk 0:01:32]}  Bg5 {[%clk 0:01:59]} 28. Bxg5 {[%clk 0:01:28]}  Qxg5 {[%clk 0:01:59]} 29. b4 {[%clk 0:01:28]}  axb4 {[%clk 0:01:58]} 30. axb4 {[%clk 0:01:29]}  Na6 {[%clk 0:01:55]} 31. f4 {[%clk 0:01:27]}  Qg3 {[%clk 0:01:48]} 32. Qxg3 {[%clk 0:01:24]}  hxg3 {[%clk 0:01:48]} 33. fxe5 {[%clk 0:01:25]}  dxe5 {[%clk 0:01:49]} 34. Nc2 {[%clk 0:01:25]}  Rxd2 {[%clk 0:01:45]} 35. Rxd2 {[%clk 0:01:26]}  Be6 {[%clk 0:01:41]} 36. c5 {[%clk 0:01:24]}  Nc7 {[%clk 0:01:39]} 37. Ne2 {[%clk 0:01:19]}  Ra8 {[%clk 0:01:37]} 38. Nxg3 {[%clk 0:01:19]}  Ra2 {[%clk 0:01:37]} 39. Rd8+ {[%clk 0:01:08]}  Kg7 {[%clk 0:01:37]} 40. Ne3 {[%clk 0:01:08]}  Rb2 {[%clk 0:01:24]} 41. Ng4 {[%clk 0:00:57]}  Bxg4 {[%clk 0:01:19]} 42. hxg4 {[%clk 0:00:57]}  Rxb4 {[%clk 0:01:20]} 43. Rd7 {[%clk 0:00:57]}  Ne6 {[%clk 0:01:19]} 44. Kh2 {[%clk 0:00:51]}  Nxc5 {[%clk 0:01:19]} 45. Re7 {[%clk 0:00:46]}  Kf6 {[%clk 0:01:17]} 46. Re8 {[%clk 0:00:46]}  Nxe4 {[%clk 0:01:14]} 47. g5+ {[%clk 0:00:43]}  Kxg5 {[%clk 0:01:04]} 48. Rxe5+ {[%clk 0:00:39]}  f5 {[%clk 0:01:05]} 49. Nxe4+ {[%clk 0:00:32]}  Rxe4 {[%clk 0:01:04]} 50. Rc5 {[%clk 0:00:32]}  Kf6 {[%clk 0:00:54]} 51. Ra5 {[%clk 0:00:26]}  Rb4 {[%clk 0:00:54]} 52. Ra8 {[%clk 0:00:24]}  g5 {[%clk 0:00:47]} 53. Rb8 {[%clk 0:00:24]}  c5 {[%clk 0:00:44]} 54. Ba6 {[%clk 0:00:20]}  b6 {[%clk 0:00:44]} 55. Rc8 {[%clk 0:00:19]}  g4 {[%clk 0:00:38]} 56. Rc6+ {[%clk 0:00:19]}  Kg5 {[%clk 0:00:37]} 57. Bc8 {[%clk 0:00:19]}  f4 {[%clk 0:00:32]} 58. Kg1 {[%clk 0:00:18]}  g3 {[%clk 0:00:31]} 59. Kf1 {[%clk 0:00:18]}  Rb2 {[%clk 0:00:30]} 60. Rc7 {[%clk 0:00:17]}  Rf2+ {[%clk 0:00:30]} 61. Kg1 {[%clk 0:00:17]}  Rc2 {[%clk 0:00:28]} 62. Kf1 {[%clk 0:00:17]}  c4 {[%clk 0:00:28]} 63. Rg7+ {[%clk 0:00:17]}  Kf6 {[%clk 0:00:28]} 64. Rb7 {[%clk 0:00:16]}  Rb2 {[%clk 0:00:26]} 65. Rc7 {[%clk 0:00:15]}  b5 {[%clk 0:00:26]} 66. Ba6 {[%clk 0:00:15]}  Ke5 {[%clk 0:00:23]} 67. Rc5+ {[%clk 0:00:15]}  Kd4 {[%clk 0:00:21]} 68. Rxb5 {[%clk 0:00:16]}  Ra2 {[%clk 0:00:18]} 69. Bb7 {[%clk 0:00:15]}  c3 {[%clk 0:00:18]} 70. Rb1 {[%clk 0:00:14]}  c2 {[%clk 0:00:19]} 71. Rc1 {[%clk 0:00:15]}  Kc3 {[%clk 0:00:19]} 72. Be4 {[%clk 0:00:15]}  Kd2 {[%clk 0:00:18]} 73. Rxc2+ {[%clk 0:00:12]}  Rxc2 {[%clk 0:00:19]} 74. Bxc2 {[%clk 0:00:12]}  Kxc2 {[%clk 0:00:19]} 75. Ke1 {[%clk 0:00:13]}  Kd3 {[%clk 0:00:19]} 76. Kf1 {[%clk 0:00:12]}  Kd2 {[%clk 0:00:19]} 77. Kg1 {[%clk 0:00:12]}  Ke2 {[%clk 0:00:19]} 78. Kh1 {[%clk 0:00:12]}  f3 {[%clk 0:00:18]} 79. gxf3 {[%clk 0:00:09]}  Kxf3 {[%clk 0:00:18]} 80. Kg1 {[%clk 0:00:09]}  g2 {[%clk 0:00:19]} 81. Kh2 {[%clk 0:00:09]}  Kf2 {[%clk 0:00:19]} 82. Kh3 {[%clk 0:00:10]}  g1=Q {[%clk 0:00:19]} 83. Kh4 {[%clk 0:00:10]}  Qg6 {[%clk 0:00:19]} 84. Kh3 {[%clk 0:00:10]}  Qg3# {[%clk 0:00:20]} 0-1

[Event "January 2 Early 2024"]
[Site "https://www.chess.com"]
[Date "2024.01.02"]
[Round "7"]
[White "Manukian, Artak"]
[Black "Reprintsev, Alexander"]
[Result "0-1"]
[Board "96"]
[TimeControl "180+1"]
[WhiteFideId "13301373"]
[BlackFideId "14100541"]
[WhiteElo "2609"]
[BlackElo "2465"]
[WhiteTeam "ARM"]
[BlackTeam "UKR"]
[WhiteClock "0:00:21"]
[BlackClock "0:00:36"]

1. e4 {[%clk 0:03:00]}  d5 {[%clk 0:02:59]} 2. exd5 {[%clk 0:03:00]}  Qxd5 {[%clk 0:02:59]} 3. Nc3 {[%clk 0:03:00]}  Qa5 {[%clk 0:02:59]} 4. d4 {[%clk 0:03:00]}  Nf6 {[%clk 0:02:59]} 5. Bc4 {[%clk 0:02:58]}  Nc6 {[%clk 0:02:59]} 6. d5 {[%clk 0:02:52]}  Nb4 {[%clk 0:02:59]} 7. a3 {[%clk 0:02:49]}  c6 {[%clk 0:02:59]} 8. dxc6 {[%clk 0:02:48]}  Nxc6 {[%clk 0:02:58]} 9. Bd2 {[%clk 0:02:43]}  Qc5 {[%clk 0:02:55]} 10. Qe2 {[%clk 0:02:42]}  Bg4 {[%clk 0:02:54]} 11. f3 {[%clk 0:02:40]}  Nd4 {[%clk 0:02:35]} 12. Bb5+ {[%clk 0:02:28]}  Bd7 {[%clk 0:02:35]} 13. Bxd7+ {[%clk 0:02:26]}  Nxd7 {[%clk 0:02:35]} 14. Qd3 {[%clk 0:02:23]}  Ne5 {[%clk 0:02:29]} 15. Qe4 {[%clk 0:02:22]}  f5 {[%clk 0:01:49]} 16. Qxb7 {[%clk 0:02:14]}  Nxc2+ {[%clk 0:01:47]} 17. Kd1 {[%clk 0:02:14]}  Nxa1 {[%clk 0:01:47]} 18. Qxa8+ {[%clk 0:02:14]}  Kf7 {[%clk 0:01:48]} 19. Qd5+ {[%clk 0:02:07]}  e6 {[%clk 0:01:46]} 20. Qxc5 {[%clk 0:02:02]}  Bxc5 {[%clk 0:01:47]} 21. b4 {[%clk 0:01:55]}  Bd4 {[%clk 0:01:42]} 22. Nge2 {[%clk 0:01:54]}  Rd8 {[%clk 0:01:35]} 23. Nxd4 {[%clk 0:01:44]}  Rxd4 {[%clk 0:01:35]} 24. Ke1 {[%clk 0:01:42]}  Nb3 {[%clk 0:01:22]} 25. Be3 {[%clk 0:01:37]}  Rd3 {[%clk 0:01:21]} 26. Nd1 {[%clk 0:01:37]}  Nd4 {[%clk 0:01:09]} 27. Kf2 {[%clk 0:01:15]}  Nc4 {[%clk 0:00:56]} 28. Re1 {[%clk 0:01:00]}  Nxe3 {[%clk 0:00:55]} 29. Nxe3 {[%clk 0:00:57]}  Rxa3 {[%clk 0:00:55]} 30. Nc4 {[%clk 0:00:54]}  Ra2+ {[%clk 0:00:53]} 31. Kf1 {[%clk 0:00:49]}  Kf6 {[%clk 0:00:52]} 32. f4 {[%clk 0:00:46]}  Ra4 {[%clk 0:00:44]} 33. Rd1 {[%clk 0:00:34]}  Nc2 {[%clk 0:00:38]} 34. Rd7 {[%clk 0:00:30]}  Rxb4 {[%clk 0:00:36]} 35. Ne5 {[%clk 0:00:21]}  Rxf4+ {[%clk 0:00:36]} 0-1